[Event "Titled Tuesday Blitz May 9 Early 2023"]
[White "Necula, Iulian"]
[Black "Carrasco Miranda, Andres"]
[WhiteFideId "1232380"]
[BlackFideId "3405990"]
[WhiteElo "1790"]
[BlackElo "2183"]
[Result "0-1"]
[Round "06"]
[TimeControl "180+2"]
[Date "2023.05.09"]
[WhiteClock "0:00:00"]
[BlackClock "0:00:05"]

1. d4 {[%clk 0:03:00]}  Nf6 {[%clk 0:02:56]} 2. Nc3 {[%clk 0:03:01]}  d5 {[%clk 0:02:55]} 3. Bf4 {[%clk 0:03:01]}  g6 {[%clk 0:02:55]} 4. e3 {[%clk 0:02:59]}  Bg7 {[%clk 0:02:55]} 5. h4 {[%clk 0:03:00]}  h5 {[%clk 0:02:54]} 6. Nf3 {[%clk 0:02:58]}  Bg4 {[%clk 0:02:45]} 7. Be2 {[%clk 0:02:58]}  Bxf3 {[%clk 0:02:45]} 8. Bxf3 {[%clk 0:02:57]}  e6 {[%clk 0:02:46]} 9. Qe2 {[%clk 0:02:47]}  c5 {[%clk 0:02:45]} 10. Qb5+ {[%clk 0:02:44]}  Qd7 {[%clk 0:02:45]} 11. Qxc5 {[%clk 0:02:33]}  Na6 {[%clk 0:02:45]} 12. Qa3 {[%clk 0:02:30]}  Bf8 {[%clk 0:02:45]} 13. Qb3 {[%clk 0:02:29]}  Rc8 {[%clk 0:02:37]} 14. O-O {[%clk 0:02:25]}  Ng4 {[%clk 0:02:36]} 15. e4 {[%clk 0:02:08]}  Bd6 {[%clk 0:02:22]} 16. e5 {[%clk 0:02:01]}  Be7 {[%clk 0:02:18]} 17. Bg3 {[%clk 0:01:58]}  Rc6 {[%clk 0:02:11]} 18. Nxd5 {[%clk 0:01:54]}  exd5 {[%clk 0:02:09]} 19. Bxd5 {[%clk 0:01:54]}  Rb6 {[%clk 0:02:06]} 20. Bxf7+ {[%clk 0:01:51]}  Kf8 {[%clk 0:02:06]} 21. Qd5 {[%clk 0:01:36]}  Qxd5 {[%clk 0:01:56]} 22. Bxd5 {[%clk 0:01:37]}  Rxb2 {[%clk 0:01:56]} 23. Rab1 {[%clk 0:01:32]}  Rxb1 {[%clk 0:01:54]} 24. Rxb1 {[%clk 0:01:31]}  b6 {[%clk 0:01:54]} 25. Bb7 {[%clk 0:01:25]}  Nb4 {[%clk 0:01:53]} 26. d5 {[%clk 0:01:13]}  Bc5 {[%clk 0:01:42]} 27. d6 {[%clk 0:01:11]}  Nxc2 {[%clk 0:01:29]} 28. e6 {[%clk 0:01:05]}  Nd4 {[%clk 0:01:18]} 29. e7+ {[%clk 0:01:04]}  Ke8 {[%clk 0:01:13]} 30. Bc8 {[%clk 0:01:00]}  Ne2+ {[%clk 0:01:07]} 31. Kf1 {[%clk 0:00:54]}  Nxg3+ {[%clk 0:01:08]} 32. fxg3 {[%clk 0:00:53]}  Bxd6 {[%clk 0:01:09]} 33. Re1 {[%clk 0:00:26]}  Rh7 {[%clk 0:00:58]} 34. Re6 {[%clk 0:00:17]}  Bxe7 {[%clk 0:00:54]} 35. Rxg6 {[%clk 0:00:16]}  Rf7+ {[%clk 0:00:48]} 36. Ke1 {[%clk 0:00:15]}  Nf6 {[%clk 0:00:09]} 37. Be6 {[%clk 0:00:14]}  Rf8 {[%clk 0:00:07]} 38. Rh6 {[%clk 0:00:12]}  Kd8 {[%clk 0:00:07]} 39. Ke2 {[%clk 0:00:07]}  Kc7 {[%clk 0:00:07]} 40. a4 {[%clk 0:00:07]}  Kd6 {[%clk 0:00:06]} 41. Bc4 {[%clk 0:00:05]}  Kc5 {[%clk 0:00:05]} 42. Bb5 {[%clk 0:00:05]}  Bd6 {[%clk 0:00:04]} 43. Rg6 {[%clk 0:00:04]}  Be5 {[%clk 0:00:02]} 44. Rg5 {[%clk 0:00:04]}  Kd4 {[%clk 0:00:02]} 45. g4 {[%clk 0:00:03]}  hxg4 {[%clk 0:00:02]} 46. h5 {[%clk 0:00:04]}  g3 {[%clk 0:00:01]} 47. h6 {[%clk 0:00:04]}  Rh8 {[%clk 0:00:02]} 48. Rg6 {[%clk 0:00:04]}  Ng4 {[%clk 0:00:02]} 49. Bd7 {[%clk 0:00:04]}  Nf6 {[%clk 0:00:02]} 50. Bf5 {[%clk 0:00:03]}  Nd5 {[%clk 0:00:03]} 51. Kf3 {[%clk 0:00:02]}  Nc3 {[%clk 0:00:03]} 52. h7 {[%clk 0:00:02]}  Rxh7 {[%clk 0:00:03]} 53. Rd6+ {[%clk 0:00:01]}  Bxd6 {[%clk 0:00:03]} 54. Bxh7 {[%clk 0:00:02]}  Nxa4 {[%clk 0:00:03]} 55. Bc2 {[%clk 0:00:01]}  Nc5 {[%clk 0:00:03]} 56. Kg4 {[%clk 0:00:01]}  b5 {[%clk 0:00:04]} 57. Kf5 {[%clk 0:00:00]}  a5 {[%clk 0:00:05]} 0-1


[Site "https://www.chess.com"]

[Event "Titled Tuesday Blitz May 9 Early 2023"]
[White "Stead, Kerry"]
[Black "Kiseljova, Marya"]
[WhiteFideId "3202577"]
[BlackFideId "4155009"]
[WhiteElo "1997"]
[BlackElo "1831"]
[Result "1-0"]
[Round "06"]
[TimeControl "180+2"]
[Date "2023.05.09"]
[WhiteClock "0:01:30"]
[BlackClock "0:01:01"]

1. d4 {[%clk 0:02:50]}  Nf6 {[%clk 0:02:58]} 2. f3 {[%clk 0:02:50]}  d5 {[%clk 0:02:51]} 3. e4 {[%clk 0:02:49]}  dxe4 {[%clk 0:02:46]} 4. Nc3 {[%clk 0:02:49]}  exf3 {[%clk 0:02:43]} 5. Nxf3 {[%clk 0:02:50]}  e6 {[%clk 0:02:43]} 6. Bg5 {[%clk 0:02:49]}  Be7 {[%clk 0:02:43]} 7. Bd3 {[%clk 0:02:49]}  O-O {[%clk 0:02:43]} 8. O-O {[%clk 0:02:49]}  b6 {[%clk 0:02:38]} 9. Qe1 {[%clk 0:02:47]}  h6 {[%clk 0:02:36]} 10. Qh4 {[%clk 0:02:40]}  hxg5 {[%clk 0:02:24]} 11. Nxg5 {[%clk 0:02:39]}  Nbd7 {[%clk 0:02:24]} 12. Bh7+ {[%clk 0:02:37]}  Kh8 {[%clk 0:02:21]} 13. Nce4 {[%clk 0:02:25]}  g6 {[%clk 0:02:03]} 14. Nxf6 {[%clk 0:02:21]}  Nxf6 {[%clk 0:02:01]} 15. Rxf6 {[%clk 0:02:17]}  Kg7 {[%clk 0:01:59]} 16. Bxg6 {[%clk 0:01:47]}  Rh8 {[%clk 0:01:50]} 17. Rxf7+ {[%clk 0:01:36]}  Kxg6 {[%clk 0:01:16]} 18. Qe4+ {[%clk 0:01:34]}  Kxg5 {[%clk 0:01:10]} 19. Rg7+ {[%clk 0:01:31]}  Kh6 {[%clk 0:01:01]} 20. Qg6# {[%clk 0:01:30]} 1-0


[Site "https://www.chess.com"]

[Event "Titled Tuesday Blitz May 9 Early 2023"]
[White "Hartikainen, Jarmo"]
[Black "Acikel, Mert"]
[WhiteFideId "503134"]
[BlackFideId "12956465"]
[WhiteElo "2094"]
[BlackElo "2097"]
[Result "0-1"]
[Round "06"]
[TimeControl "180+2"]
[Date "2023.05.09"]
[WhiteClock "0:00:18"]
[BlackClock "0:00:09"]

1. e4 {[%clk 0:03:00]}  e5 {[%clk 0:02:59]} 2. Nf3 {[%clk 0:03:00]}  Nc6 {[%clk 0:02:59]} 3. Bc4 {[%clk 0:03:00]}  Bc5 {[%clk 0:02:59]} 4. c3 {[%clk 0:03:00]}  Nf6 {[%clk 0:02:59]} 5. d4 {[%clk 0:02:59]}  exd4 {[%clk 0:03:00]} 6. b4 {[%clk 0:02:59]}  Bb6 {[%clk 0:02:48]} 7. e5 {[%clk 0:02:58]}  d5 {[%clk 0:02:22]} 8. exf6 {[%clk 0:02:57]}  dxc4 {[%clk 0:02:19]} 9. Qe2+ {[%clk 0:02:56]}  Be6 {[%clk 0:02:14]} 10. b5 {[%clk 0:02:56]}  Nb8 {[%clk 0:01:56]} 11. fxg7 {[%clk 0:02:48]}  Rg8 {[%clk 0:01:56]} 12. cxd4 {[%clk 0:02:05]}  Rxg7 {[%clk 0:01:51]} 13. O-O {[%clk 0:01:28]}  c6 {[%clk 0:01:10]} 14. Bb2 {[%clk 0:01:18]}  Rg8 {[%clk 0:01:00]} 15. Na3 {[%clk 0:01:07]}  Qd5 {[%clk 0:00:57]} 16. bxc6 {[%clk 0:00:46]}  Nxc6 {[%clk 0:00:41]} 17. Rac1 {[%clk 0:00:45]}  O-O-O {[%clk 0:00:14]} 18. Rfd1 {[%clk 0:00:44]}  Bg4 {[%clk 0:00:04]} 19. Kf1 {[%clk 0:00:39]}  Rde8 {[%clk 0:00:05]} 20. Qxc4 {[%clk 0:00:32]}  Bxf3 {[%clk 0:00:05]} 21. Qxd5 {[%clk 0:00:31]}  Bxd5 {[%clk 0:00:05]} 22. f3 {[%clk 0:00:28]}  Kb8 {[%clk 0:00:05]} 23. Nb5 {[%clk 0:00:28]}  Rd8 {[%clk 0:00:04]} 24. Ba3 {[%clk 0:00:26]}  a6 {[%clk 0:00:01]} 25. Nd6 {[%clk 0:00:26]}  Bxa2 {[%clk 0:00:01]} 26. Nxf7 {[%clk 0:00:24]}  Bxf7 {[%clk 0:00:01]} 27. d5 {[%clk 0:00:22]}  Bxd5 {[%clk 0:00:02]} 28. Re1 {[%clk 0:00:20]}  Bb3 {[%clk 0:00:01]} 29. Re2 {[%clk 0:00:17]}  Rge8 {[%clk 0:00:02]} 30. Ke1 {[%clk 0:00:15]}  Rxe2+ {[%clk 0:00:02]} 31. Kxe2 {[%clk 0:00:16]}  Re8+ {[%clk 0:00:03]} 32. Kd3 {[%clk 0:00:15]}  Nd4 {[%clk 0:00:03]} 33. Bb2 {[%clk 0:00:13]}  Bc2+ {[%clk 0:00:03]} 34. Kc4 {[%clk 0:00:12]}  Re2 {[%clk 0:00:02]} 35. Kd5 {[%clk 0:00:11]}  Rxg2 {[%clk 0:00:02]} 36. Bxd4 {[%clk 0:00:11]}  Bxd4 {[%clk 0:00:02]} 37. Kxd4 {[%clk 0:00:12]}  Rxh2 {[%clk 0:00:03]} 38. f4 {[%clk 0:00:11]}  Bg6 {[%clk 0:00:03]} 39. Ke5 {[%clk 0:00:10]}  Rf2 {[%clk 0:00:03]} 40. Rc4 {[%clk 0:00:08]}  Ka7 {[%clk 0:00:03]} 41. Rd4 {[%clk 0:00:08]}  a5 {[%clk 0:00:03]} 42. Rd5 {[%clk 0:00:07]}  b6 {[%clk 0:00:03]} 43. Ke6 {[%clk 0:00:07]}  Ka6 {[%clk 0:00:03]} 44. f5 {[%clk 0:00:07]}  Bxf5+ {[%clk 0:00:04]} 45. Rxf5 {[%clk 0:00:07]}  Rxf5 {[%clk 0:00:04]} 46. Kxf5 {[%clk 0:00:07]}  a4 {[%clk 0:00:04]} 47. Ke4 {[%clk 0:00:07]}  a3 {[%clk 0:00:05]} 48. Kd4 {[%clk 0:00:08]}  h5 {[%clk 0:00:05]} 49. Kc3 {[%clk 0:00:09]}  h4 {[%clk 0:00:06]} 50. Kb3 {[%clk 0:00:10]}  h3 {[%clk 0:00:04]} 51. Kxa3 {[%clk 0:00:10]}  h2 {[%clk 0:00:04]} 52. Kb3 {[%clk 0:00:11]}  h1=Q {[%clk 0:00:03]} 53. Kc4 {[%clk 0:00:12]}  Qc6+ {[%clk 0:00:04]} 54. Kd4 {[%clk 0:00:12]}  Qc5+ {[%clk 0:00:04]} 55. Kd3 {[%clk 0:00:13]}  Kb5 {[%clk 0:00:05]} 56. Ke4 {[%clk 0:00:14]}  Kc4 {[%clk 0:00:05]} 57. Kf4 {[%clk 0:00:15]}  Kd3 {[%clk 0:00:05]} 58. Kg4 {[%clk 0:00:13]}  Qf8 {[%clk 0:00:05]} 59. Kg5 {[%clk 0:00:13]}  b5 {[%clk 0:00:06]} 60. Kg6 {[%clk 0:00:13]}  b4 {[%clk 0:00:06]} 61. Kg5 {[%clk 0:00:14]}  b3 {[%clk 0:00:06]} 62. Kg4 {[%clk 0:00:15]}  b2 {[%clk 0:00:07]} 63. Kg5 {[%clk 0:00:16]}  b1=R {[%clk 0:00:06]} 64. Kg4 {[%clk 0:00:17]}  Rb7 {[%clk 0:00:07]} 65. Kg5 {[%clk 0:00:18]}  Rg7+ {[%clk 0:00:08]} 66. Kh6 {[%clk 0:00:18]}  Qh8# {[%clk 0:00:09]} 0-1


[Site "https://www.chess.com"]

[Event "Titled Tuesday Blitz May 9 Early 2023"]
[White "Nakamura, Hikaru"]
[Black "Sargsyan, Shant"]
[WhiteFideId "2016192"]
[BlackFideId "13306766"]
[WhiteElo "2885"]
[BlackElo "2628"]
[Result "1-0"]
[Round "07"]
[TimeControl "180+2"]
[Date "2023.05.09"]
[WhiteClock "0:00:12"]
[BlackClock "0:00:00"]

1. e4 {[%clk 0:03:00]}  e5 {[%clk 0:02:58]} 2. Bc4 {[%clk 0:02:58]}  Nf6 {[%clk 0:02:57]} 3. d3 {[%clk 0:02:58]}  Nc6 {[%clk 0:02:58]} 4. Nc3 {[%clk 0:02:57]}  Bb4 {[%clk 0:02:58]} 5. Ne2 {[%clk 0:02:57]}  O-O {[%clk 0:02:59]} 6. O-O {[%clk 0:02:57]}  Na5 {[%clk 0:02:55]} 7. Bg5 {[%clk 0:02:54]}  Nxc4 {[%clk 0:02:55]} 8. dxc4 {[%clk 0:02:54]}  Bxc3 {[%clk 0:02:52]} 9. Nxc3 {[%clk 0:02:53]}  h6 {[%clk 0:02:53]} 10. Be3 {[%clk 0:02:24]}  d6 {[%clk 0:02:51]} 11. f3 {[%clk 0:02:25]}  b6 {[%clk 0:02:49]} 12. Qd2 {[%clk 0:02:21]}  Be6 {[%clk 0:02:49]} 13. b3 {[%clk 0:02:22]}  Nd7 {[%clk 0:02:50]} 14. g4 {[%clk 0:02:19]}  g5 {[%clk 0:02:39]} 15. h4 {[%clk 0:02:17]}  f6 {[%clk 0:02:39]} 16. Kf2 {[%clk 0:02:18]}  Kg7 {[%clk 0:02:39]} 17. Rh1 {[%clk 0:02:18]}  Rh8 {[%clk 0:02:39]} 18. Rh2 {[%clk 0:02:18]}  Qf8 {[%clk 0:02:35]} 19. Rah1 {[%clk 0:02:17]}  Qf7 {[%clk 0:02:17]} 20. Nb5 {[%clk 0:02:13]}  Nc5 {[%clk 0:01:59]} 21. Kg3 {[%clk 0:01:28]}  a6 {[%clk 0:01:58]} 22. Nc3 {[%clk 0:01:15]}  Qg6 {[%clk 0:01:36]} 23. Kf2 {[%clk 0:01:11]}  Rad8 {[%clk 0:01:34]} 24. Ke1 {[%clk 0:01:09]}  c6 {[%clk 0:01:18]} 25. b4 {[%clk 0:01:01]}  Nb7 {[%clk 0:01:03]} 26. Bxb6 {[%clk 0:00:59]}  Rd7 {[%clk 0:01:04]} 27. hxg5 {[%clk 0:00:51]}  fxg5 {[%clk 0:01:05]} 28. Be3 {[%clk 0:00:52]}  Rdd8 {[%clk 0:00:59]} 29. Ne2 {[%clk 0:00:51]}  Bxc4 {[%clk 0:00:41]} 30. Ng3 {[%clk 0:00:49]}  Be6 {[%clk 0:00:42]} 31. Qc3 {[%clk 0:00:38]}  Rc8 {[%clk 0:00:38]} 32. Qd3 {[%clk 0:00:31]}  Qf7 {[%clk 0:00:29]} 33. Nf5+ {[%clk 0:00:28]}  Bxf5 {[%clk 0:00:29]} 34. exf5 {[%clk 0:00:24]}  Qxa2 {[%clk 0:00:24]} 35. f6+ {[%clk 0:00:21]}  Kf7 {[%clk 0:00:18]} 36. Rxh6 {[%clk 0:00:21]}  Qa1+ {[%clk 0:00:15]} 37. Kd2 {[%clk 0:00:19]}  Qxh1 {[%clk 0:00:13]} 38. Rxh1 {[%clk 0:00:20]}  Rxh1 {[%clk 0:00:13]} 39. Qxa6 {[%clk 0:00:18]}  Rc7 {[%clk 0:00:13]} 40. Qb6 {[%clk 0:00:17]}  Rd7 {[%clk 0:00:10]} 41. Qxc6 {[%clk 0:00:17]}  Ke6 {[%clk 0:00:08]} 42. Bxg5 {[%clk 0:00:12]}  Rh2+ {[%clk 0:00:09]} 43. Kc1 {[%clk 0:00:12]}  Rhh7 {[%clk 0:00:06]} 44. Be3 {[%clk 0:00:11]}  Rc7 {[%clk 0:00:06]} 45. Qe4 {[%clk 0:00:11]}  Rhf7 {[%clk 0:00:05]} 46. g5 {[%clk 0:00:11]}  d5 {[%clk 0:00:04]} 47. Qg4+ {[%clk 0:00:11]}  Kd6 {[%clk 0:00:05]} 48. g6 {[%clk 0:00:11]}  Rxf6 {[%clk 0:00:00]} 49. g7 {[%clk 0:00:12]} 1-0


[Site "https://www.chess.com"]

[Event "Titled Tuesday Blitz May 9 Early 2023"]
[White "Mitrabha, Guha"]
[Black "Bluebaum, Matthias"]
[WhiteFideId "5057000"]
[BlackFideId "24651516"]
[WhiteElo "2507"]
[BlackElo "2639"]
[Result "0-1"]
[Round "07"]
[TimeControl "180+2"]
[Date "2023.05.09"]
[WhiteClock "0:02:06"]
[BlackClock "0:01:37"]

1. Nf3 {[%clk 0:02:59]}  d5 {[%clk 0:03:00]} 2. d4 {[%clk 0:02:58]}  e6 {[%clk 0:03:00]} 3. c4 {[%clk 0:02:59]}  Nf6 {[%clk 0:03:00]} 4. Nc3 {[%clk 0:02:57]}  Bb4 {[%clk 0:03:00]} 5. Bg5 {[%clk 0:02:57]}  h6 {[%clk 0:03:00]} 6. Bxf6 {[%clk 0:02:53]}  Qxf6 {[%clk 0:03:01]} 7. Qa4+ {[%clk 0:02:53]}  Nc6 {[%clk 0:03:02]} 8. e3 {[%clk 0:02:52]}  O-O {[%clk 0:03:01]} 9. Rc1 {[%clk 0:02:46]}  Qg6 {[%clk 0:03:01]} 10. Qc2 {[%clk 0:02:46]}  Qxc2 {[%clk 0:03:02]} 11. Rxc2 {[%clk 0:02:46]}  Rd8 {[%clk 0:03:03]} 12. cxd5 {[%clk 0:02:46]}  exd5 {[%clk 0:03:03]} 13. Bd3 {[%clk 0:02:46]}  Ne7 {[%clk 0:02:59]} 14. a3 {[%clk 0:02:44]}  Bd6 {[%clk 0:02:51]} 15. Nb5 {[%clk 0:02:43]}  c6 {[%clk 0:02:52]} 16. Nxd6 {[%clk 0:02:43]}  Rxd6 {[%clk 0:02:53]} 17. b4 {[%clk 0:02:43]}  Bf5 {[%clk 0:02:52]} 18. Kd2 {[%clk 0:02:43]}  Bxd3 {[%clk 0:02:38]} 19. Kxd3 {[%clk 0:02:44]}  a6 {[%clk 0:02:38]} 20. a4 {[%clk 0:02:43]}  Nf5 {[%clk 0:02:38]} 21. Rb1 {[%clk 0:02:41]}  Re6 {[%clk 0:02:33]} 22. b5 {[%clk 0:02:40]}  axb5 {[%clk 0:02:34]} 23. axb5 {[%clk 0:02:41]}  Ra3+ {[%clk 0:02:26]} 24. Ke2 {[%clk 0:02:39]}  f6 {[%clk 0:01:42]} 25. bxc6 {[%clk 0:02:29]}  bxc6 {[%clk 0:01:43]} 26. g4 {[%clk 0:02:25]}  Nxe3 {[%clk 0:01:42]} 27. fxe3 {[%clk 0:02:10]}  Rexe3+ {[%clk 0:01:42]} 28. Kf2 {[%clk 0:02:10]}  Rxf3+ {[%clk 0:01:43]} 29. Kg2 {[%clk 0:02:11]}  Rf4 {[%clk 0:01:39]} 30. h3 {[%clk 0:02:11]}  Rxd4 {[%clk 0:01:40]} 31. Rb6 {[%clk 0:02:06]}  c5 {[%clk 0:01:37]} 0-1


[Site "https://www.chess.com"]

[Event "Titled Tuesday Blitz May 9 Early 2023"]
[White "Ivic, Velimir"]
[Black "Maghsoodloo, Parham"]
[WhiteFideId "950122"]
[BlackFideId "12539929"]
[WhiteElo "2563"]
[BlackElo "2655"]
[Result "1-0"]
[Round "07"]
[TimeControl "180+2"]
[Date "2023.05.09"]
[WhiteClock "0:00:04"]
[BlackClock "0:00:00"]

1. e4 {[%clk 0:02:55]}  c5 {[%clk 0:02:59]} 2. Nf3 {[%clk 0:02:55]}  d6 {[%clk 0:03:00]} 3. d4 {[%clk 0:02:56]}  cxd4 {[%clk 0:03:00]} 4. Nxd4 {[%clk 0:02:57]}  Nf6 {[%clk 0:03:01]} 5. Nc3 {[%clk 0:02:57]}  a6 {[%clk 0:03:01]} 6. Be3 {[%clk 0:02:56]}  e5 {[%clk 0:03:01]} 7. Nb3 {[%clk 0:02:56]}  Be6 {[%clk 0:03:01]} 8. f3 {[%clk 0:02:57]}  Nbd7 {[%clk 0:02:56]} 9. g4 {[%clk 0:02:57]}  b5 {[%clk 0:02:50]} 10. a4 {[%clk 0:02:53]}  b4 {[%clk 0:02:49]} 11. Nd5 {[%clk 0:02:53]}  Bxd5 {[%clk 0:02:47]} 12. exd5 {[%clk 0:02:54]}  Nb6 {[%clk 0:02:33]} 13. Bg1 {[%clk 0:02:53]}  Be7 {[%clk 0:02:18]} 14. f4 {[%clk 0:02:52]}  Nfxd5 {[%clk 0:02:05]} 15. Qf3 {[%clk 0:02:26]}  O-O {[%clk 0:01:22]} 16. a5 {[%clk 0:02:19]}  e4 {[%clk 0:01:18]} 17. Qxe4 {[%clk 0:02:17]}  Nf6 {[%clk 0:01:18]} 18. Qf3 {[%clk 0:02:13]}  Nbd7 {[%clk 0:01:16]} 19. g5 {[%clk 0:02:12]}  Ne8 {[%clk 0:01:16]} 20. O-O-O {[%clk 0:02:07]}  Nc7 {[%clk 0:01:15]} 21. h4 {[%clk 0:02:04]}  Ne6 {[%clk 0:01:10]} 22. Bc4 {[%clk 0:01:58]}  Qc7 {[%clk 0:00:59]} 23. Bd5 {[%clk 0:01:40]}  Rac8 {[%clk 0:00:59]} 24. Rh2 {[%clk 0:01:41]}  Nec5 {[%clk 0:00:51]} 25. Nd4 {[%clk 0:01:32]}  Qxa5 {[%clk 0:00:51]} 26. Kb1 {[%clk 0:01:33]}  Nb6 {[%clk 0:00:49]} 27. Nf5 {[%clk 0:01:23]}  Rfe8 {[%clk 0:00:41]} 28. Bxf7+ {[%clk 0:00:42]}  Kxf7 {[%clk 0:00:41]} 29. Qh5+ {[%clk 0:00:43]}  Ke6 {[%clk 0:00:17]} 30. Nxd6 {[%clk 0:00:22]}  Bxd6 {[%clk 0:00:12]} 31. Re2+ {[%clk 0:00:22]}  Kd7 {[%clk 0:00:11]} 32. Qf7+ {[%clk 0:00:22]}  Kc6 {[%clk 0:00:04]} 33. Rxe8 {[%clk 0:00:21]}  Rc7 {[%clk 0:00:04]} 34. Qf5 {[%clk 0:00:08]}  b3 {[%clk 0:00:03]} 35. cxb3 {[%clk 0:00:04]}  Qb5 {[%clk 0:00:02]} 36. Bxc5 {[%clk 0:00:02]}  Bxc5 {[%clk 0:00:01]} 37. Qe4+ {[%clk 0:00:03]}  Nd5 {[%clk 0:00:01]} 38. Qxd5+ {[%clk 0:00:03]}  Kb6 {[%clk 0:00:00]} 39. Rb8+ {[%clk 0:00:04]} 1-0


[Site "https://www.chess.com"]

[Event "Titled Tuesday Blitz May 9 Early 2023"]
[White "Shimanov, Aleksandr"]
[Black "Donchenko, Alexander"]
[WhiteFideId "4198603"]
[BlackFideId "24603295"]
[WhiteElo "2631"]
[BlackElo "2554"]
[Result "0-1"]
[Round "07"]
[TimeControl "180+2"]
[Date "2023.05.09"]
[WhiteClock "0:00:00"]
[BlackClock "0:00:03"]

1. b3 {[%clk 0:02:58]}  Nf6 {[%clk 0:02:59]} 2. Bb2 {[%clk 0:02:58]}  g6 {[%clk 0:02:59]} 3. Nf3 {[%clk 0:02:58]}  Bg7 {[%clk 0:03:00]} 4. d4 {[%clk 0:02:55]}  O-O {[%clk 0:02:59]} 5. g3 {[%clk 0:02:55]}  b6 {[%clk 0:02:56]} 6. Bg2 {[%clk 0:02:55]}  Bb7 {[%clk 0:02:57]} 7. O-O {[%clk 0:02:54]}  c5 {[%clk 0:02:56]} 8. dxc5 {[%clk 0:02:50]}  bxc5 {[%clk 0:02:55]} 9. c4 {[%clk 0:02:51]}  Nc6 {[%clk 0:02:53]} 10. Nc3 {[%clk 0:02:51]}  d6 {[%clk 0:02:46]} 11. e3 {[%clk 0:02:46]}  a5 {[%clk 0:02:33]} 12. Qe2 {[%clk 0:02:46]}  Qb6 {[%clk 0:02:26]} 13. Rad1 {[%clk 0:02:37]}  Rfd8 {[%clk 0:02:20]} 14. Ba1 {[%clk 0:02:25]}  Nb4 {[%clk 0:02:16]} 15. a4 {[%clk 0:02:11]}  Ne4 {[%clk 0:02:06]} 16. Nb5 {[%clk 0:02:08]}  Bxa1 {[%clk 0:02:02]} 17. Rxa1 {[%clk 0:02:09]}  d5 {[%clk 0:01:56]} 18. Ne5 {[%clk 0:01:59]}  Qf6 {[%clk 0:01:43]} 19. f4 {[%clk 0:01:57]}  dxc4 {[%clk 0:01:37]} 20. Nxc4 {[%clk 0:01:52]}  Nc3 {[%clk 0:01:30]} 21. Qb2 {[%clk 0:01:18]}  Bxg2 {[%clk 0:01:27]} 22. Qxg2 {[%clk 0:01:19]}  Rab8 {[%clk 0:01:00]} 23. e4 {[%clk 0:00:37]}  Nxb5 {[%clk 0:00:52]} 24. e5 {[%clk 0:00:38]}  Qf5 {[%clk 0:00:40]} 25. axb5 {[%clk 0:00:37]}  Rxb5 {[%clk 0:00:41]} 26. g4 {[%clk 0:00:24]}  Qd3 {[%clk 0:00:37]} 27. Kh1 {[%clk 0:00:24]}  Qxb3 {[%clk 0:00:33]} 28. Nxa5 {[%clk 0:00:24]}  Qc3 {[%clk 0:00:26]} 29. Rac1 {[%clk 0:00:22]}  Qe3 {[%clk 0:00:22]} 30. Nc4 {[%clk 0:00:21]}  Qd3 {[%clk 0:00:13]} 31. f5 {[%clk 0:00:21]}  Qd5 {[%clk 0:00:12]} 32. Qxd5 {[%clk 0:00:03]}  Rxd5 {[%clk 0:00:13]} 33. f6 {[%clk 0:00:03]}  exf6 {[%clk 0:00:12]} 34. exf6 {[%clk 0:00:03]}  Nd3 {[%clk 0:00:10]} 35. Ra1 {[%clk 0:00:04]}  Rb8 {[%clk 0:00:10]} 36. Ra7 {[%clk 0:00:04]}  h5 {[%clk 0:00:08]} 37. gxh5 {[%clk 0:00:03]}  Rxh5 {[%clk 0:00:08]} 38. Nd6 {[%clk 0:00:03]}  Rf8 {[%clk 0:00:08]} 39. Ne4 {[%clk 0:00:01]}  c4 {[%clk 0:00:07]} 40. Rc7 {[%clk 0:00:01]}  Ne5 {[%clk 0:00:06]} 41. Rc5 {[%clk 0:00:02]}  Ng4 {[%clk 0:00:03]} 42. Rxh5 {[%clk 0:00:01]}  gxh5 {[%clk 0:00:04]} 43. h3 {[%clk 0:00:01]}  Ne5 {[%clk 0:00:02]} 44. Rg1+ {[%clk 0:00:02]}  Ng6 {[%clk 0:00:02]} 45. Rg5 {[%clk 0:00:02]}  Rc8 {[%clk 0:00:02]} 46. Nc3 {[%clk 0:00:02]}  Rc6 {[%clk 0:00:03]} 47. Rf5 {[%clk 0:00:01]}  h4 {[%clk 0:00:03]} 48. Kg2 {[%clk 0:00:01]}  Kf8 {[%clk 0:00:03]} 49. Kf3 {[%clk 0:00:02]}  Ke8 {[%clk 0:00:03]} 50. Ke4 {[%clk 0:00:02]}  Kd7 {[%clk 0:00:04]} 51. Kd5 {[%clk 0:00:02]}  Rc8 {[%clk 0:00:03]} 52. Rf1 {[%clk 0:00:02]}  Nf8 {[%clk 0:00:02]} 53. Ra1 {[%clk 0:00:02]}  Ne6 {[%clk 0:00:02]} 54. Ra7+ {[%clk 0:00:02]}  Rc7 {[%clk 0:00:03]} 55. Ra8 {[%clk 0:00:02]}  Rc5+ {[%clk 0:00:03]} 56. Ke4 {[%clk 0:00:02]}  Ng5+ {[%clk 0:00:03]} 57. Kd4 {[%clk 0:00:03]}  Ne6+ {[%clk 0:00:03]} 58. Ke4 {[%clk 0:00:03]}  Rc6 {[%clk 0:00:02]} 59. Ra7+ {[%clk 0:00:03]}  Rc7 {[%clk 0:00:02]} 60. Ra5 {[%clk 0:00:03]}  Nc5+ {[%clk 0:00:02]} 61. Kd5 {[%clk 0:00:03]}  Ne6 {[%clk 0:00:02]} 62. Ke4 {[%clk 0:00:03]}  Nc5+ {[%clk 0:00:02]} 63. Kd5 {[%clk 0:00:04]}  Nd3 {[%clk 0:00:03]} 64. Kd4 {[%clk 0:00:03]}  Nf4 {[%clk 0:00:03]} 65. Re5 {[%clk 0:00:02]}  Nxh3 {[%clk 0:00:03]} 66. Re7+ {[%clk 0:00:02]}  Kd8 {[%clk 0:00:03]} 67. Re4 {[%clk 0:00:02]}  Ng5 {[%clk 0:00:03]} 68. Rg4 {[%clk 0:00:01]}  Ne6+ {[%clk 0:00:03]} 69. Ke5 {[%clk 0:00:02]}  Kd7 {[%clk 0:00:03]} 70. Rxh4 {[%clk 0:00:01]}  Rc5+ {[%clk 0:00:04]} 71. Ke4 {[%clk 0:00:02]}  Rg5 {[%clk 0:00:04]} 72. Rh7 {[%clk 0:00:01]}  Ke8 {[%clk 0:00:04]} 73. Rh8+ {[%clk 0:00:02]}  Kd7 {[%clk 0:00:04]} 74. Rh7 {[%clk 0:00:02]}  Nd8 {[%clk 0:00:03]} 75. Kd4 {[%clk 0:00:02]}  Rg4+ {[%clk 0:00:03]} 76. Kd5 {[%clk 0:00:01]}  Rg5+ {[%clk 0:00:01]} 77. Kxc4 {[%clk 0:00:01]}  Ke6 {[%clk 0:00:02]} 78. Ne4 {[%clk 0:00:01]}  Rg4 {[%clk 0:00:02]} 79. Kd3 {[%clk 0:00:00]}  Nc6 {[%clk 0:00:03]} 0-1


[Site "https://www.chess.com"]